bitfinex/quotes_SOLUSD_20220227
["timestamp","ask_amount","ask_price","bid_price","bid_amount"]
[1645977062149,23.2662,91.527,91.416,0.25]
[1645977062349,23.2662,91.527,91.417,2.74678921]
[1645977062648,23.2662,91.527,91.431,109.4]
[1645977062850,23.2662,91.527,91.433,109.4]
[1645977063049,23.2662,91.527,91.434,6.25]
[1645977063249,23.2662,91.527,91.435,23.5304]
[1645977063449,23.2662,91.527,91.436,9.09698985]
[1645977063648,23.2662,91.527,91.436,11.84377906]
[1645977064052,35.01374724,91.528,91.436,11.84377906]
[1645977064053,35.01374724,91.528,91.437,2.74678921]
[1645977064250,35.01374724,91.528,91.438,0.25]
[1645977064455,35.01374724,91.528,91.45,16.4017]
[1645977064753,35.01374724,91.528,91.451,3.20672494]
[1645977064954,1.86775013,91.526,91.439,2.74678921]
[1645977065153,4.372,91.525,91.416,2.74678921]
[1645977065354,4.372,91.525,91.387,2.25053568]
[1645977065554,1.40545196,91.523,91.388,6.0]
[1645977065755,4.623,91.522,91.388,8.74678921]
[1645977065954,109.4,91.521,91.388,8.74678921]
[1645977066157,109.4,91.519,91.389,2.74678921]
[1645977066357,109.4,91.509,91.4,16.4076]
[1645977066560,136.5583254,91.507,91.401,2.57374122]
[1645977066762,136.5583254,91.507,91.401,5.63931843]
[1645977066958,1.36303858,91.506,91.401,5.63931843]
[1645977067158,4.373,91.505,91.402,2.74678921]
[1645977067358,4.373,91.505,91.403,0.25]
[1645977067557,27.1583254,91.507,91.41,16.4076]
[1645977067759,27.1583254,91.507,91.411,3.03889045]
[1645977067959,27.1583254,91.507,91.412,6.0]
[1645977068258,27.1583254,91.507,91.413,0.25]
[1645977068458,27.1583254,91.507,91.413,6.25]
[1645977068659,27.1583254,91.507,91.415,2.76576431]
[1645977068860,27.1583254,91.507,91.421,109.4]
[1645977069162,27.1583254,91.507,91.424,2.7510663]
[1645977069360,27.1583254,91.507,91.425,0.25]
[1645977069760,27.1583254,91.507,91.425,2.99678921]
[1645977069960,27.1583254,91.507,91.426,26.17658921]
[1645977070161,27.1583254,91.507,91.427,2.98757632]
[1645977070363,27.1583254,91.507,91.427,5.73436553]
[1645977070562,27.1583254,91.507,91.44,16.4022]
[1645977070762,27.1583254,91.507,91.441,0.25]
[1645977070962,0.25,91.506,91.441,3.2508306]
[1645977071163,0.25,91.506,91.441,0.25]
[1645977071965,0.25,91.506,91.427,3.00777976]
[1645977071966,109.65,91.506,91.427,3.00777976]
[1645977072164,109.4,91.504,91.417,23.8191]
[1645977072364,109.4,91.502,91.418,2.92389151]
[1645977072563,109.4,91.5,91.418,2.92389151]
[1645977072764,4.373,91.499,91.418,2.92389151]
[1645977073062,4.373,91.499,91.383,24.8487]
[1645977073063,109.4,91.489,91.395,2.9833161]
[1645977073263,109.4,91.486,91.384,2.77881536]
[1645977073464,109.4,91.484,91.384,2.77881536]
[1645977073663,1.52937322,91.483,91.384,2.77881536]
[1645977073862,4.374,91.482,91.364,2.74678921]
[1645977074063,4.374,91.482,91.353,23.13053957]
[1645977074064,4.374,91.482,91.37,2.53655205]
[1645977074265,4.374,91.482,91.371,0.25]
[1645977074563,2.74678921,91.481,91.355,2.50650282]
[1645977074763,113.775,91.48,91.355,2.50650282]
[1645977074963,1.81802386,91.479,91.356,8.74678921]
[1645977075162,109.4,91.469,91.36,16.4157]
[1645977075362,109.4,91.467,91.361,8.9878049]
[1645977075562,1.35769333,91.466,91.361,8.9878049]
[1645977075763,1.35769333,91.466,91.361,11.73459411]
[1645977075963,2.74678921,91.465,91.362,2.99678921]
[1645977076162,2.74678921,91.465,91.363,6.0]
[1645977076363,2.74678921,91.465,91.362,2.6862144]
[1645977076564,110.77314646,91.459,91.363,2.74678921]
[1645977076765,110.77314646,91.459,91.33,112.2]
[1645977076766,1.78666325,91.458,91.346,2.34081915]
[1645977076966,4.376,91.457,91.331,2.53006789]
[1645977077170,113.776,91.457,91.331,2.53006789]
[1645977077364,109.4,91.455,91.331,2.53006789]
[1645977077565,109.4,91.452,91.331,2.53006789]
[1645977077766,109.4,91.45,91.319,2.41331639]
[1645977077966,1.46910524,91.449,91.309,2.89405255]
[1645977078165,4.377,91.448,91.309,2.89405255]
[1645977078366,109.4,91.448,91.309,2.89405255]
[1645977078567,109.4,91.439,91.309,2.89405255]
[1645977078766,109.4,91.436,91.309,2.89405255]
[1645977078967,1.82226124,91.435,91.322,2.74678921]
[1645977079267,3.18529982,91.435,91.323,0.25]
[1645977079470,1.49217701,91.432,91.322,0.25]
[1645977079667,4.377,91.431,91.322,0.25]
[1645977079867,109.4,91.43,91.322,0.25]
[1645977080068,4.377,91.429,91.322,0.25]
[1645977080266,109.4,91.428,91.322,0.25]
[1645977080467,109.4,91.419,91.322,0.25]
[1645977080668,109.4,91.417,91.322,0.25]
[1645977081472,0.25,91.416,91.322,0.25]
[1645977082272,26.75194082,91.418,91.322,2.99678921]
[1645977082472,0.25,91.417,91.322,2.99678921]
[1645977083378,26.75194082,91.418,91.331,2.76690471]
[1645977083572,26.75194082,91.418,91.332,6.25]
[1645977083774,26.75194082,91.418,91.332,55.96067718]
[1645977084073,26.75194082,91.418,91.334,2.4817574]
[1645977084274,26.75194082,91.418,91.335,6.25]
[1645977084476,26.75194082,91.418,91.335,8.99678921]
[1645977084679,26.75194082,91.418,91.336,2.74678921]
[1645977084878,26.75194082,91.418,91.35,16.4197]
[1645977085080,26.75194082,91.418,91.351,0.25]
[1645977085279,26.75194082,91.418,91.351,5.99874487]
[1645977085579,26.75194082,91.418,91.352,2.74678921]
[1645977085883,0.25,91.417,91.353,0.25]
[1645977087891,0.25,91.417,91.338,5.63357552]
[1645977089493,0.25,91.417,91.339,0.25]
[1645977089995,0.25,91.417,91.34,2.74678921]
[1645977090193,0.25,91.417,91.341,0.25]
[1645977091493,109.65,91.417,91.331,2.43229848]
[1645977091695,4.377,91.416,91.331,2.43229848]
[1645977091893,26.75194082,91.418,91.341,2.74678921]
[1645977092092,109.4,91.417,91.341,2.74678921]
[1645977092295,1.38285717,91.416,91.341,2.74678921]
[1645977092495,26.75194082,91.418,91.319,2.8798873]
[1645977092496,1.74357393,91.408,91.319,2.8798873]
[1645977092795,4.378,91.407,91.319,2.8798873]
[1645977092992,1.74357393,91.408,91.319,2.8798873]
[1645977094396,16.4277,91.41,91.322,2.99678921]
[1645977094601,113.777,91.409,91.322,2.74678921]
[1645977094798,0.25,91.408,91.319,2.8798873]
[1645977095002,4.378,91.407,91.322,0.25]
[1645977095200,0.25,91.408,91.322,2.74678921]
[1645977095398,109.4,91.397,91.319,2.8798873]
[1645977095599,4.378,91.396,91.319,2.8798873]
[1645977096600,109.4,91.389,91.319,2.8798873]
[1645977097805,109.4,91.389,91.292,2.74678921]
[1645977097806,1.63890688,91.388,91.293,2.80485834]
[1645977098004,109.4,91.389,91.293,2.80485834]
[1645977098005,204.4,91.377,91.293,2.80485834]
[1645977098205,208.778,91.377,91.282,191.0]
[1645977098406,208.778,91.377,91.205,24.3762]
[1645977098407,1.67609488,91.376,91.26,112.2]
[1645977098605,4.42288409,91.376,91.22,112.2]
[1645977098804,181.7632,91.375,91.22,112.2]
[1645977099006,1.6958937,91.374,91.223,2.74678921]
[1645977099205,0.25,91.373,91.223,2.74678921]
[1645977099405,4.381,91.372,91.223,2.74678921]
[1645977099606,1.73851598,91.368,91.23,16.4411]
[1645977100006,4.381,91.367,91.231,26.02758921]
[1645977100210,109.4,91.366,91.231,26.02758921]
[1645977100406,109.4,91.363,91.232,2.74678921]
[1645977100608,1.53946843,91.36,91.232,2.74678921]
[1645977100809,4.381,91.359,91.232,2.74678921]
[1645977101208,1.38375063,91.358,91.232,2.74678921]
[1645977101407,4.381,91.357,91.232,2.74678921]
[1645977101607,109.4,91.337,91.232,2.74678921]
[1645977102107,3.13116442,91.336,91.232,2.74678921]
[1645977102607,1.46659883,91.335,91.232,2.74678921]
[1645977102813,2.74678921,91.335,91.232,2.74678921]
[1645977103514,1.83417855,91.328,91.233,0.25]
[1645977103913,1.83417855,91.328,91.234,2.74678921]
[1645977104116,1.83417855,91.328,91.235,0.25]
[1645977104514,1.83417855,91.328,91.236,2.74678921]
[1645977104714,1.83417855,91.328,91.24,16.4395]
[1645977104915,4.382,91.334,91.241,0.25]
[1645977105115,4.382,91.334,91.241,2.99678921]
[1645977105319,1.50132248,91.337,91.241,2.99678921]
[1645977105516,1.50132248,91.337,91.242,2.74678921]
[1645977105715,1.50132248,91.337,91.243,0.25]
[1645977106115,1.50132248,91.337,91.244,2.74678921]
[1645977106315,1.50132248,91.337,91.245,0.25]
[1645977106516,0.25,91.336,91.25,16.4376]
[1645977106717,0.25,91.336,91.251,0.25]
[1645977106918,0.25,91.336,91.251,2.99678921]
[1645977107922,2.09014308,91.336,91.251,2.99678921]
[1645977108522,4.381,91.349,91.251,2.99678921]
[1645977108724,1.75138596,91.349,91.26,16.4357]
[1645977108924,1.75138596,91.349,91.252,2.74678921]
[1645977108925,1.3568218,91.337,91.252,2.74678921]
[1645977109121,1.3568218,91.337,91.253,0.25]
[1645977109320,1.3568218,91.337,91.252,2.74678921]
[1645977109520,110.7568218,91.337,91.252,2.74678921]
[1645977109719,1.79035206,91.336,91.252,2.74678921]
[1645977109919,0.25,91.335,91.252,2.74678921]
[1645977110120,0.25,91.335,91.245,46.8104]
[1645977110320,2.99678921,91.335,91.245,46.8104]
[1645977111923,0.25,91.335,91.246,0.25]
[1645977113621,0.25,91.335,91.24,19.18558921]
[1645977113824,109.4,91.329,91.23,2.74678921]
[1645977114024,1.45382427,91.328,91.231,0.25]
[1645977114424,109.4,91.326,91.231,0.25]
[1645977114727,109.4,91.323,91.231,0.25]
[1645977115024,109.4,91.319,91.231,0.25]
[1645977115224,1.44474166,91.318,91.221,0.25]
[1645977115524,4.19153087,91.318,91.221,0.25]
[1645977116124,109.4,91.309,91.221,0.25]
[1645977116324,109.4,91.307,91.221,0.25]
[1645977116523,109.4,91.307,91.22,114.94678921]
[1645977116524,1.37835928,91.306,91.22,112.2]
[1645977116725,4.382,91.305,91.22,112.2]
[1645977117324,2.74678921,91.304,91.22,112.2]
[1645977117524,109.4,91.299,91.22,112.2]
[1645977117726,2.01762302,91.298,91.22,112.2]
[1645977118526,0.25,91.298,91.22,112.2]
[1645977118727,1.39253326,91.305,91.221,0.25]
[1645977118928,0.25,91.304,91.221,23.0623]
[1645977119528,0.25,91.304,91.22,112.2]
[1645977119730,0.25,91.304,91.221,0.25]
[1645977120130,22.7308,91.307,91.221,0.25]
[1645977120427,109.65,91.306,91.221,0.25]
[1645977120856,1.72765438,91.305,91.221,24.2005]
[1645977121728,109.4,91.306,91.221,24.2005]
[1645977124933,0.25,91.305,91.221,24.2005]
[1645977127335,1.98084614,91.305,91.221,24.2005]
[1645977128762,1.98084614,91.305,91.22,16.4428]
[1645977128962,2.74678921,91.304,91.206,24.1825]
[1645977129263,4.383,91.303,91.206,24.1825]
[1645977129662,1.38375063,91.302,91.206,24.1825]
[1645977130062,109.4,91.299,91.206,24.1825]
[1645977130262,16.4488,91.3,91.206,24.1825]
[1645977130263,109.4,91.297,91.206,24.1825]
[1645977130464,109.4,91.295,91.18,29.71356356]
[1645977130665,29.14405454,91.296,91.184,128.3705]
[1645977130666,109.4,91.293,91.184,128.3705]
[1645977130867,109.4,91.291,91.184,128.3705]
[1645977131072,31.0561259,91.294,91.184,128.3705]
[1645977131073,109.4,91.289,91.185,30.88950488]
[1645977131269,1.5504041,91.288,91.185,30.88950488]
[1645977131968,109.4,91.286,91.185,30.88950488]
[1645977132170,1.48471414,91.285,91.185,30.88950488]
[1645977132374,4.384,91.284,91.185,30.88950488]
[1645977132568,1.51431548,91.281,91.185,30.88950488]
[1645977132770,109.4,91.277,91.185,30.88950488]
[1645977132968,1.63101658,91.276,91.185,30.88950488]
[1645977133567,1.38375063,91.275,91.185,30.88950488]
[1645977133772,2.74678921,91.275,91.185,30.88950488]
[1645977134469,2.74678921,91.275,91.186,0.25]
[1645977134970,2.74678921,91.275,91.187,30.88950488]
[1645977135170,2.74678921,91.275,91.188,0.25]
[1645977135370,1.63101658,91.276,91.19,16.4501]
[1645977135569,2.74678921,91.275,91.191,0.25]
[1645977135770,2.74678921,91.275,91.188,0.25]
[1645977136373,0.25,91.274,91.188,0.25]
[1645977136870,1.38375063,91.273,91.185,0.25]
[1645977137271,1.38375063,91.273,91.186,30.8904066]
[1645977137471,1.38375063,91.273,91.187,0.25]
[1645977137972,1.63101658,91.276,91.187,0.25]
[1645977138173,35.84333956,91.278,91.188,30.8904066]
[1645977138372,35.84333956,91.278,91.189,12.90704241]
[1645977138572,35.84333956,91.278,91.189,15.65383162]
[1645977138771,35.84333956,91.278,91.19,3.01293164]
[1645977138975,35.84333956,91.278,91.191,13.23101759]
[1645977139173,35.84333956,91.278,91.21,16.4465]
[1645977139372,0.25,91.277,91.211,0.25]
[1645977140574,109.65,91.277,91.195,4.383]
[1645977140775,1.44508605,91.276,91.194,23.3841]
[1645977142877,0.25,91.275,91.194,23.3841]
[1645977143278,0.25,91.275,91.195,0.25]
[1645977143978,0.25,91.275,91.194,23.3841]
[1645977144181,109.4,91.273,91.194,23.3841]
[1645977144380,109.4,91.271,91.194,23.3841]
[1645977144581,1.73316299,91.27,91.194,23.3841]
[1645977144980,111.22552708,91.269,91.184,112.2]
[1645977145280,109.4,91.267,91.184,112.2]
[1645977145480,1.84634329,91.266,91.184,112.2]
[1645977145883,109.4,91.263,91.184,112.2]
[1645977146082,4.384,91.262,91.163,24.4719]
[1645977146282,109.4,91.261,91.163,24.4719]
[1645977146482,109.4,91.249,91.163,24.4719]
[1645977146687,16.4579,91.25,91.163,24.4719]
[1645977146688,109.4,91.247,91.164,30.89717965]
[1645977146885,1.44556196,91.246,91.164,30.89717965]
[1645977147585,1.44556196,91.246,91.163,24.4719]
[1645977147785,4.385,91.245,91.163,24.4719]
[1645977147986,109.4,91.239,91.164,30.89961689]
[1645977148186,1.81022708,91.238,91.164,30.89961689]
[1645977148387,1.81022708,91.238,91.163,24.4719]
[1645977150788,1.81022708,91.238,91.164,30.89966689]
[1645977152896,1.38375063,91.237,91.164,30.89966689]
[1645977153098,2.74678921,91.237,91.164,30.89966689]
[1645977153595,1.56022708,91.238,91.164,30.89966689]
[1645977153795,1.63995625,91.245,91.164,30.89966689]
[1645977153995,1.63995625,91.245,91.165,0.25]
[1645977154897,1.63995625,91.245,91.163,24.4719]
[1645977154898,1.63995625,91.245,91.166,30.90068806]
[1645977155097,1.63995625,91.245,91.167,0.25]
[1645977155697,4.385,91.257,91.17,16.4537]
[1645977155898,1.38375063,91.265,91.171,0.25]
[1645977156099,1.41482924,91.268,91.171,30.90068806]
[1645977156498,142.17882343,91.248,91.164,35.28568806]
[1645977156697,142.17882343,91.248,91.164,30.90068806]
[1645977156898,1.49464084,91.247,91.164,30.90068806]
[1645977157296,0.25,91.246,91.165,0.25]
[1645977157897,0.25,91.246,91.166,30.90068806]
[1645977158100,0.25,91.246,91.167,0.25]
[1645977158600,0.25,91.246,91.17,16.4536]
[1645977158801,32.77882343,91.248,91.171,0.25]
[1645977159000,32.77882343,91.248,91.171,31.15068806]
[1645977159200,32.77882343,91.248,91.171,34.17922202]
[1645977159400,32.77882343,91.248,91.172,30.90068806]
[1645977159601,32.77882343,91.248,91.173,0.25]
[1645977160004,32.77882343,91.248,91.181,2.38075745]
[1645977160203,32.77882343,91.248,91.182,0.25]
[1645977160602,32.77882343,91.248,91.183,33.64747727]
[1645977160803,32.77882343,91.248,91.184,0.25]
[1645977161004,32.77882343,91.248,91.184,33.89747727]
[1645977161203,1.72848274,91.298,91.19,16.4496]
[1645977161404,24.0066,91.297,91.191,33.99988335]
[1645977161604,24.0066,91.297,91.192,2.31911449]
[1645977161804,24.0066,91.297,91.193,6.25]
[1645977162003,24.0066,91.297,91.193,8.65392948]
[1645977162206,144.28033155,91.296,91.194,33.64747727]
[1645977162404,147.02712076,91.296,91.195,9.13335475]
[1645977162607,1.38375063,91.295,91.21,16.4458]
[1645977162804,1.38375063,91.295,91.211,24.5502]
[1645977163005,2.74678921,91.295,91.212,30.90068806]
[1645977163303,2.74678921,91.295,91.213,0.25]
[1645977163604,2.74678921,91.295,91.213,31.15068806]
[1645977163804,2.74678921,91.295,91.214,33.64747727]
[1645977164004,2.74678921,91.295,91.215,0.25]
[1645977164205,2.74678921,91.295,91.215,2.99678921]
[1645977164405,2.74678921,91.295,91.216,33.64747727]
[1645977164605,2.74678921,91.295,91.217,0.25]
[1645977164804,2.74678921,91.295,91.217,33.89747727]
[1645977165005,2.74678921,91.295,91.218,2.74678921]
[1645977165207,2.74678921,91.295,91.219,0.25]
[1645977165405,2.74678921,91.295,91.22,16.4447]
[1645977165606,2.74678921,91.295,91.221,0.25]
[1645977166006,2.74678921,91.295,91.222,30.90068806]
[1645977166207,2.74678921,91.295,91.223,0.25]
[1645977166406,2.74678921,91.295,91.223,31.15068806]
[1645977166906,0.25,91.294,91.224,30.90068806]
[1645977167109,0.25,91.294,91.23,16.4429]
[1645977167309,34.63033155,91.296,91.231,0.25]
[1645977167507,34.63033155,91.296,91.231,36.92068806]
[1645977167710,34.63033155,91.296,91.232,2.74678921]
[1645977167906,34.63033155,91.296,91.233,0.25]
[1645977168307,34.63033155,91.296,91.234,30.90068806]
[1645977168507,34.63033155,91.296,91.24,16.4406]
[1645977168706,34.63033155,91.296,91.241,0.25]
[1645977168907,0.25,91.295,91.241,0.25]
[1645977169107,0.25,91.295,91.242,30.90068806]
[1645977169309,0.25,91.295,91.243,0.25]
[1645977169510,0.25,91.295,91.243,31.15068806]
[1645977169910,0.25,91.295,91.243,0.25]
[1645977170110,0.25,91.295,91.24,16.4406]
[1645977170111,0.25,91.295,91.22,16.444]
[1645977170313,111.08293216,91.295,91.22,16.444]
[1645977170510,1.85017208,91.294,91.22,16.444]
[1645977170811,1.85017208,91.294,91.221,30.88215626]
[1645977171011,1.85017208,91.294,91.222,24.2544]
[1645977171411,1.85017208,91.294,91.223,0.25]
[1645977171613,1.85017208,91.294,91.223,31.13215626]
[1645977172113,34.63033155,91.296,91.23,16.4428]
[1645977172311,34.63033155,91.296,91.231,0.25]
[1645977172521,34.63033155,91.296,91.231,31.13215626]
[1645977172915,109.4,91.295,91.232,30.88215626]
[1645977173115,109.4,91.295,91.233,0.25]
[1645977173712,109.4,91.295,91.234,30.88215626]
[1645977173913,109.4,91.295,91.235,0.25]
[1645977174313,0.25,91.294,91.235,0.25]
[1645977174514,0.25,91.294,91.236,30.88215626]
[1645977174713,0.25,91.294,91.237,0.25]
[1645977175315,0.25,91.294,91.238,30.88215626]
[1645977175517,0.25,91.294,91.239,0.25]
[1645977175915,0.25,91.294,91.238,30.88215626]
[1645977175916,1.73358198,91.294,91.238,30.88215626]
[1645977176115,1.73358198,91.294,91.222,24.2544]
[1645977176414,2.74678921,91.293,91.222,24.2544]
[1645977176615,2.74678921,91.293,91.223,30.88627358]
[1645977176818,1.36970189,91.369,91.224,2.59303561]
[1645977177015,16.5355,91.421,91.224,2.59303561]
[1645977177016,1.61874277,91.4,91.231,109.4]
[1645977177217,49.74214277,91.4,91.233,109.4]
[1645977177515,49.74214277,91.4,91.254,109.4]
[1645977177516,48.1234,91.4,91.254,109.4]
[1645977177715,109.4,91.398,91.256,109.4]
[1645977177916,1.55697435,91.398,91.264,109.4]
[1645977178124,1.55697435,91.398,91.266,109.4]
[1645977178319,1.55697435,91.398,91.267,3.33210286]
[1645977178519,1.55697435,91.398,91.28,16.4297]
[1645977178722,1.55697435,91.398,91.281,32.57595149]
[1645977178920,110.95697435,91.398,91.282,2.25572456]
[1645977179120,1.71768392,91.397,91.283,6.25]
[1645977179322,4.46447313,91.397,91.284,30.88627358]
[1645977179522,4.46447313,91.397,91.285,8.62818628]
[1645977179721,1.38375063,91.396,91.285,8.62818628]
[1645977179921,0.25,91.395,91.287,2.95345566]
[1645977180123,0.25,91.395,91.288,6.25]
[1645977180425,1.38375063,91.394,91.31,16.4254]
[1645977180624,2.74678921,91.394,91.311,0.25]
[1645977181824,2.74678921,91.394,91.302,0.25]
[1645977182022,4.378,91.393,91.302,0.25]
[1645977182322,0.25,91.392,91.302,0.25]
[1645977182522,4.378,91.391,91.302,0.25]
[1645977182725,109.4,91.39,91.302,0.25]
[1645977182924,109.4,91.388,91.302,0.25]
[1645977183121,109.4,91.386,91.266,4.378]
[1645977183324,109.4,91.383,91.287,0.25]
[1645977183526,109.4,91.381,91.287,0.25]
[1645977183726,1.7584992,91.38,91.287,0.25]
[1645977183926,4.378,91.379,91.287,0.25]
[1645977184328,1.48726671,91.377,91.287,0.25]
[1645977184642,109.4,91.367,91.287,0.25]
[1645977184843,1.62994174,91.366,91.287,0.25]
[1645977185244,4.37673095,91.366,91.287,0.25]
[1645977185445,1.38375063,91.365,91.287,0.25]
[1645977185645,109.4,91.364,91.287,0.25]
[1645977185847,1.70089316,91.363,91.287,0.25]
[1645977186044,3.08464379,91.363,91.287,0.25]
[1645977186445,2.74678921,91.362,91.287,0.25]
[1645977190449,1.70089316,91.363,91.287,0.25]
[1645977190651,33.32575738,91.368,91.287,0.25]
[1645977190849,33.32575738,91.368,91.288,2.74678921]
[1645977191053,33.32575738,91.368,91.289,10.628]
[1645977191248,33.32575738,91.368,91.289,24.41297622]
[1645977191450,33.32575738,91.368,91.29,5.13826796]
[1645977191650,33.32575738,91.368,91.291,10.628]
[1645977191850,33.32575738,91.368,91.31,16.4262]
[1645977192049,33.32575738,91.368,91.311,0.25]
[1645977193953,4.53581858,91.402,91.311,0.25]
[1645977194153,1.363198,91.418,91.32,16.4252]
[1645977194352,5.9379823,91.459,91.321,115.4]
[1645977194555,4.377,91.459,91.35,54.7198]
[1645977194753,4.376,91.473,91.351,0.25]
[1645977195051,30.52372796,91.473,91.36,16.416]
[1645977195254,109.4,91.472,91.361,10.625]
[1645977195453,1.66909399,91.472,91.362,2.89403634]
[1645977195653,1.66909399,91.472,91.37,54.7062]
[1645977195851,1.66909399,91.472,91.362,2.74678921]
[1645977195852,4.375,91.471,91.362,2.74678921]
[1645977196053,4.375,91.471,91.352,48.2176]
[1645977196254,109.4,91.47,91.353,0.25]
[1645977196452,109.4,91.47,91.352,48.2176]
[1645977196453,16.4224,91.44,91.352,48.2176]
[1645977196654,109.4,91.437,91.352,48.2176]
[1645977196854,1.76922943,91.436,91.352,48.2176]
[1645977197255,109.4,91.434,91.352,48.2176]
[1645977197554,1.55231893,91.433,91.352,48.2176]
[1645977197955,4.29910814,91.433,91.352,48.2176]
[1645977198156,1.55231893,91.433,91.352,48.2176]
[1645977198558,109.4,91.429,91.352,48.2176]
[1645977198761,1.43278464,91.428,91.352,48.2176]
[1645977198965,4.376,91.427,91.316,2.74678921]
[1645977199259,4.376,91.427,91.243,5.7]
[1645977199260,109.4,91.426,91.286,4.377]
[1645977199464,109.4,91.423,91.291,47.4117]
[1645977199672,109.4,91.421,91.291,47.4117]
[1645977199867,109.4,91.419,91.291,47.4117]
[1645977200066,109.4,91.399,91.291,47.4117]
[1645977200267,109.4,91.397,91.292,4.378]
[1645977200470,1.82745773,91.396,91.293,0.25]
[1645977200668,1.82745773,91.396,91.294,4.378]
[1645977200870,1.82745773,91.396,91.295,0.25]
[1645977201077,1.82745773,91.396,91.3,16.4285]
[1645977201274,29.61863314,91.398,91.301,4.628]
[1645977201472,29.61863314,91.398,91.302,0.25]
[1645977201669,1.60571354,91.397,91.303,4.378]
[1645977201870,1.60571354,91.397,91.304,0.25]
[1645977202071,1.60571354,91.397,91.305,4.378]
[1645977202273,1.60571354,91.397,91.306,0.25]
[1645977202472,1.60571354,91.397,91.307,4.378]
[1645977202671,1.60571354,91.397,91.306,0.25]
[1645977202672,111.00571354,91.397,91.308,0.25]
[1645977202875,1.85662898,91.396,91.306,0.25]
[1645977203797,1.85662898,91.396,91.302,0.25]
[1645977203992,1.85662898,91.396,91.301,0.25]
[1645977204192,3.24724094,91.396,91.301,0.25]
[1645977205096,3.24724094,91.396,91.31,16.4269]
[1645977205294,3.24724094,91.396,91.311,0.25]
[1645977206099,1.35617725,91.395,91.311,0.25]
[1645977206898,0.25,91.394,91.31,16.4269]
[1645977208198,1.60617725,91.394,91.31,16.4269]
[1645977208498,2.99678921,91.394,91.311,2.99678921]
[1645977208697,2.99678921,91.394,91.32,16.4251]
[1645977208901,2.99678921,91.394,91.321,0.25]
[1645977209900,2.99678921,91.394,91.322,2.74678921]
[1645977210100,2.99678921,91.394,91.323,0.25]
[1645977210902,0.25,91.394,91.33,16.4237]
[1645977211101,29.61863314,91.398,91.331,0.25]
[1645977213601,29.61863314,91.398,91.34,16.422]
[1645977213802,29.61863314,91.398,91.341,0.25]
[1645977214205,109.4,91.397,91.324,2.74678921]
[1645977214402,1.71457622,91.396,91.317,24.209]
[1645977214601,4.46136543,91.396,91.317,24.209]
[1645977214801,0.25,91.395,91.317,24.209]
[1645977215002,1.60617725,91.395,91.317,24.209]
[1645977215202,1.35617725,91.394,91.318,2.74678921]
[1645977215402,2.7123545,91.394,91.319,0.25]
[1645977216706,29.61863314,91.398,91.32,19.17248921]
[1645977216903,29.61863314,91.398,91.321,0.25]
[1645977217905,0.25,91.397,91.32,16.4253]
[1645977218104,0.25,91.397,91.317,24.209]
[1645977218504,2.7123545,91.396,91.317,24.209]
[1645977219307,2.7123545,91.396,91.32,16.4259]
[1645977220905,2.7123545,91.396,91.321,0.25]
[1645977222305,0.25,91.395,91.321,0.25]
[1645977222806,1.39061196,91.394,91.321,0.25]
[1645977223007,2.74678921,91.394,91.321,0.25]
[1645977224813,2.74678921,91.394,91.321,2.74678921]
[1645977225110,2.74678921,91.394,91.317,24.209]
[1645977225914,0.25,91.393,91.317,24.209]
[1645977226512,0.25,91.393,91.318,0.25]
[1645977230318,4.628,91.393,91.318,0.25]
[1645977230721,0.25,91.393,91.318,0.25]
[1645977231819,0.25,91.393,91.293,23.6035]
[1645977231820,109.4,91.389,91.291,27.56818921]
[1645977232020,109.4,91.387,91.291,27.56818921]
[1645977232219,109.4,91.385,91.291,24.8214]